Workbook

Sheet Tržní data
A1: Jednoduchý příklad na využití funkcí CONCATENATE, SVYHLEDAT/INDEX MATCH, COUNTIF, SUMIF a AVERAGEIF
A4: Vstupy (zdroj: Wolfram Mathematica 11, funkce FinancialData, data k 14.10.2018) | F4: Výstupy
A7: Kód | B7: Společnost | C7: Datum | D7: Cena akcií | G7: Datum | H7: Google | I7: IBM | J7: Microsoft | K7: JP Morgan | L7: General Electric | M7: Suma na nákup 1 akcie každé společnosti | N7: Průměrná hodnota na 1 akcii | O7: Počet společností s hodnotou v dané datum
A8: =B8&C8 -> Google42006 | B8: Google | C8: 2015-01-02 | D8: 523.3729858 | G8: 2015-01-02 | H8: =VLOOKUP(H$7&$G8,$A$8:$D$4762,4,FALSE) -> 523.3729858 | I8: =VLOOKUP(I$7&$G8,$A$8:$D$4762,4,FALSE) -> 162.0599976 | J8: 46.75999832 | K8: 62.49000168 | L8: 25.05999947 | M8: =SUMIF($C$8:$C$4762,G8,$D$8:$D$4762) -> 819.7429829 | N8: =AVERAGEIF($C$8:$C$4762,G8,$D$8:$D$4762) -> 163.9485966 | O8: =COUNTIF($C$8:$D$4762,G8) -> 5
A9: Google42009 | B9: Google | C9: 2015-01-05 | D9: 512.4630127 | G9: 2015-06-01 | H9: 533.9899902 | I9: 170.1799927 | J9: 47.22999954 | K9: 66.08000183 | L9: 27.28000069 | M9: =SUMIF($C$8:$C$4762,G9,$D$8:$D$4762) -> 844.759985 | N9: =AVERAGEIF($C$8:$C$4762,G9,$D$8:$D$4762) -> 168.951997 | O9: =COUNTIF($C$8:$D$4762,G9) -> 5
A10: Google42010 | B10: Google | C10: 2015-01-06 | D10: 500.5859985 | G10: 2016-01-04 | H10: 741.8400269 | I10: 135.9499969 | J10: 54.79999924 | K10: 63.61999893 | L10: 30.70999908 | M10: 1026.920021 | N10: 205.3840042 | O10: 5
A11: Google42011 | B11: Google | C11: 2015-01-07 | D11: 499.7279968 | G11: 2016-06-01 | H11: 734.1500244 | I11: 152.5099945 | J11: 52.84999847 | K11: 65.69000244 | L11: 30.11000061 | M11: 1035.31002 | N11: 207.0620041 | O11: 5
A12: Google42012 | B12: Google | C12: 2015-01-08 | D12: 501.3039856 | G12: 2017-01-03 | H12: 786.1400146 | I12: 167.1900024 | J12: 62.58000183 | K12: 87.23000336 | L12: 31.69000053 | M12: 1134.830023 | N12: 226.9660046 | O12: 5
A13: Google42013 | B13: Google | C13: 2015-01-09 | D13: 494.8120117 | G13: 2017-06-01 | H13: 966.9500122 | I13: 152.6699982 | J13: 70.09999847 | K13: 83.05999756 | L13: 27.71999931 | M13: 1300.500006 | N13: 260.1000011 | O13: 5
A14: Google42016 | B14: Google | C14: 2015-01-12 | D14: 491.2019958 | G14: 2018-01-02 | H14: 1065 | I14: 154.25 | J14: 85.94999695 | K14: 107.9499969 | L14: 17.97999954 | M14: 1431.129993 | N14: 286.2259987 | O14: 5
A15: Google42017 | B15: Google | C15: 2015-01-13 | D15: 494.821991 | G15: 2018-06-01 | H15: 1119.5 | I15: 141.9499969 | J15: 100.7900009 | K15: 108.4000015 | L15: 14.10000038 | M15: 1484.74 | N15: 296.948 | O15: 5
A16: Google42018 | B16: Google | C16: 2015-01-14 | D16: 499.4989929 | G16: 2018-10-12 | H16: 1110.079956 | I16: 140.8500061 | J16: 109.5699997 | K16: 106.9499969 | L16: 12.31999969 | M16: 1479.769958 | N16: 295.9539917 | O16: 5
A17: Google42019 | B17: Google | C17: 2015-01-15 | D17: 500.4159851
A18: Google42020 | B18: Google | C18: 2015-01-16 | D18: 506.6889954
A19: Google42024 | B19: Google | C19: 2015-01-20 | D19: 505.5119934 | G19: Datum | H19: Google | I19: IBM | J19: Microsoft | K19: JP Morgan | L19: General Electric | M19: Suma | N19: Průměr
A20: Google42025 | B20: Google | C20: 2015-01-21 | D20: 516.6220093 | G20: 2015-01-02 | H20: =INDEX($D$8:$D$4762,MATCH(H$19&$G20,$A$8:$A$4762,0)) -> 523.3729858 | I20: 162.0599976 | J20: 46.75999832 | K20: 62.49000168 | L20: 25.05999947 | M20: =SUM(H20:L20) -> 819.7429829 | N20: =AVERAGE(H20:L20) -> 163.9485966
A21: Google42026 | B21: Google | C21: 2015-01-22 | D21: 532.927002 | G21: 2015-06-01 | H21: 533.9899902 | I21: 170.1799927 | J21: 47.22999954 | K21: 66.08000183 | L21: 27.28000069 | M21: =SUM(H21:L21) -> 844.759985 | N21: =AVERAGE(H21:L21) -> 168.951997
A22: Google42027 | B22: Google | C22: 2015-01-23 | D22: 538.4719849 | G22: 2016-01-04 | H22: 741.8400269 | I22: 135.9499969 | J22: 54.79999924 | K22: 63.61999893 | L22: 30.70999908 | M22: 1026.920021 | N22: 205.3840042
A23: Google42030 | B23: Google | C23: 2015-01-26 | D23: 533.7449951 | G23: 2016-06-01 | H23: 734.1500244 | I23: 152.5099945 | J23: 52.84999847 | K23: 65.69000244 | L23: 30.11000061 | M23: 1035.31002 | N23: 207.0620041
A24: Google42031 | B24: Google | C24: 2015-01-27 | D24: 517.210022 | G24: 2017-01-03 | H24: 786.1400146 | I24: 167.1900024 | J24: 62.58000183 | K24: 87.23000336 | L24: 31.69000053 | M24: 1134.830023 | N24: 226.9660046
A25: Google42032 | B25: Google | C25: 2015-01-28 | D25: 508.6040039 | G25: 2017-06-01 | H25: 966.9500122 | I25: 152.6699982 | J25: 70.09999847 | K25: 83.05999756 | L25: 27.71999931 | M25: 1300.500006 | N25: 260.1000011
A26: Google42033 | B26: Google | C26: 2015-01-29 | D26: 509.2619934 | G26: 2018-01-02 | H26: 1065 | I26: 154.25 | J26: 85.94999695 | K26: 107.9499969 | L26: 17.97999954 | M26: 1431.129993 | N26: 286.2259987
A27: Google42034 | B27: Google | C27: 2015-01-30 | D27: 533.0570068 | G27: 2018-06-01 | H27: 1119.5 | I27: 141.9499969 | J27: 100.7900009 | K27: 108.4000015 | L27: 14.10000038 | M27: 1484.74 | N27: 296.948
A28: Google42037 | B28: Google | C28: 2015-02-02 | D28: 527.03302 | G28: 2018-10-12 | H28: 1110.079956 | I28: 140.8500061 | J28: 109.5699997 | K28: 106.9499969 | L28: 12.31999969 | M28: 1479.769958 | N28: 295.9539917
A29: Google42038 | B29: Google | C29: 2015-02-03 | D29: 527.7910156
A30: Google42039 | B30: Google | C30: 2015-02-04 | D30: 521.3289795
A31: Google42040 | B31: Google | C31: 2015-02-05 | D31: 526.1359863
A32: Google42041 | B32: Google | C32: 2015-02-06 | D32: 529.5460205
A33: Google42044 | B33: Google | C33: 2015-02-09 | D33: 526.3850098
A34: Google42045 | B34: Google | C34: 2015-02-10 | D34: 535.4699707
A35: Google42046 | B35: Google | C35: 2015-02-11 | D35: 534.5029907
A36: Google42047 | B36: Google | C36: 2015-02-12 | D36: 541.4439697
A37: Google42048 | B37: Google | C37: 2015-02-13 | D37: 547.507019
A38: Google42052 | B38: Google | C38: 2015-02-17 | D38: 541.3540039
A39: Google42053 | B39: Google | C39: 2015-02-18 | D39: 538.2230225
A40: Google42054 | B40: Google | C40: 2015-02-19 | D40: 541.3839722
A41: Google42055 | B41: Google | C41: 2015-02-20 | D41: 537.4749756
A42: Google42058 | B42: Google | C42: 2015-02-23 | D42: 530.4539795
A43: Google42059 | B43: Google | C43: 2015-02-24 | D43: 534.6220093
A44: Google42060 | B44: Google | C44: 2015-02-25 | D44: 542.3809814
A45: Google42061 | B45: Google | C45: 2015-02-26 | D45: 553.9589844
A46: Google42062 | B46: Google | C46: 2015-02-27 | D46: 556.8709717
A47: Google42065 | B47: Google | C47: 2015-03-02 | D47: 569.776001
A48: Google42066 | B48: Google | C48: 2015-03-03 | D48: 572.0700073
A49: Google42067 | B49: Google | C49: 2015-03-04 | D49: 571.7999878
A50: Google42068 | B50: Google | C50: 2015-03-05 | D50: 573.7550049
A51: Google42069 | B51: Google | C51: 2015-03-06 | D51: 566.1309814
A52: Google42072 | B52: Google | C52: 2015-03-09 | D52: 567.2930298
A53: Google42073 | B53: Google | C53: 2015-03-10 | D53: 553.4910278
A54: Google42074 | B54: Google | C54: 2015-03-11 | D54: 549.6710205
A55: Google42075 | B55: Google | C55: 2015-03-12 | D55: 553.9890137
A56: Google42076 | B56: Google | C56: 2015-03-13 | D56: 545.8220215
A57: Google42079 | B57: Google | C57: 2015-03-16 | D57: 552.9920044
A58: Google42080 | B58: Google | C58: 2015-03-17 | D58: 549.3319702
A59: Google42081 | B59: Google | C59: 2015-03-18 | D59: 557.9680176
A60: Google42082 | B60: Google | C60: 2015-03-19 | D60: 556.4630127
A61: Google42083 | B61: Google | C61: 2015-03-20 | D61: 558.8259888
A62: Google42086 | B62: Google | C62: 2015-03-23 | D62: 557.2800293
A63: Google42087 | B63: Google | C63: 2015-03-24 | D63: 568.6290283
A64: Google42088 | B64: Google | C64: 2015-03-25 | D64: 557.2550049
A65: Google42089 | B65: Google | C65: 2015-03-26 | D65: 553.6500244
A66: Google42090 | B66: Google | C66: 2015-03-27 | D66: 546.8389893
A67: Google42093 | B67: Google | C67: 2015-03-30 | D67: 550.5189819
A68: Google42094 | B68: Google | C68: 2015-03-31 | D68: 546.5
A69: Google42095 | B69: Google | C69: 2015-04-01 | D69: 541.0750122
A70: Google42096 | B70: Google | C70: 2015-04-02 | D70: 534.0640259
A71: Google42100 | B71: Google | C71: 2015-04-06 | D71: 535.2960205
A72: =B72&C72 -> Google42101 | B72: Google | C72: 2015-04-07 | D72: 535.5499878
A73: Google42102 | B73: Google | C73: 2015-04-08 | D73: 540.1270142
A74: Google42103 | B74: Google | C74: 2015-04-09 | D74: 539.2999878
A75: Google42104 | B75: Google | C75: 2015-04-10 | D75: 538.5319824
A76: Google42107 | B76: Google | C76: 2015-04-13 | D76: 537.6939697
A77: Google42108 | B77: Google | C77: 2015-04-14 | D77: 528.9379883
A78: Google42109 | B78: Google | C78: 2015-04-15 | D78: 531.0720215
A79: Google42110 | B79: Google | C79: 2015-04-16 | D79: 532.3389893
A80: Google42111 | B80: Google | C80: 2015-04-17 | D80: 522.6149902
A81: Google42114 | B81: Google | C81: 2015-04-20 | D81: 533.9140015
A82: Google42115 | B82: Google | C82: 2015-04-21 | D82: 532.5079956
A83: Google42116 | B83: Google | C83: 2015-04-22 | D83: 537.8880005
A84: Google42117 | B84: Google | C84: 2015-04-23 | D84: 545.5029907
A85: Google42118 | B85: Google | C85: 2015-04-24 | D85: 563.5130005
A86: Google42121 | B86: Google | C86: 2015-04-27 | D86: 555.3699951
A87: Google42122 | B87: Google | C87: 2015-04-28 | D87: 553.6799927
A88: Google42123 | B88: Google | C88: 2015-04-29 | D88: 549.0800171
A89: Google42124 | B89: Google | C89: 2015-04-30 | D89: 537.3400269
A90: Google42125 | B90: Google | C90: 2015-05-01 | D90: 537.9000244
A91: Google42128 | B91: Google | C91: 2015-05-04 | D91: 540.7800293
A92: Google42129 | B92: Google | C92: 2015-05-05 | D92: 530.7999878
A93: Google42130 | B93: Google | C93: 2015-05-06 | D93: 524.2199707
A94: Google42131 | B94: Google | C94: 2015-05-07 | D94: 530.7000122
A95: Google42132 | B95: Google | C95: 2015-05-08 | D95: 538.2199707
A96: Google42135 | B96: Google | C96: 2015-05-11 | D96: 535.7000122
A97: Google42136 | B97: Google | C97: 2015-05-12 | D97: 529.039978
A98: Google42137 | B98: Google | C98: 2015-05-13 | D98: 529.6199951
A99: Google42138 | B99: Google | C99: 2015-05-14 | D99: 538.4000244
A100: Google42139 | B100: Google | C100: 2015-05-15 | D100: 533.8499756
A101: Google42142 | B101: Google | C101: 2015-05-18 | D101: 532.2999878
A102: Google42143 | B102: Google | C102: 2015-05-19 | D102: 537.3599854
A103: Google42144 | B103: Google | C103: 2015-05-20 | D103: 539.2700195
A104: Google42145 | B104: Google | C104: 2015-05-21 | D104: 542.5100098
A105: Google42146 | B105: Google | C105: 2015-05-22 | D105: 540.1099854
A106: Google42150 | B106: Google | C106: 2015-05-26 | D106: 532.3200073
A107: Google42151 | B107: Google | C107: 2015-05-27 | D107: 539.789978
A108: Google42152 | B108: Google | C108: 2015-05-28 | D108: 539.7800293
A109: Google42153 | B109: Google | C109: 2015-05-29 | D109: 532.1099854
A110: Google42156 | B110: Google | C110: 2015-06-01 | D110: 533.9899902
A111: Google42157 | B111: Google | C111: 2015-06-02 | D111: 539.1799927
A112: Google42158 | B112: Google | C112: 2015-06-03 | D112: 540.3099976
A113: Google42159 | B113: Google | C113: 2015-06-04 | D113: 536.7000122
A114: Google42160 | B114: Google | C114: 2015-06-05 | D114: 533.3300171
A115: Google42163 | B115: Google | C115: 2015-06-08 | D115: 526.8300171
A116: Google42164 | B116: Google | C116: 2015-06-09 | D116: 526.6900024
A117: Google42165 | B117: Google | C117: 2015-06-10 | D117: 536.6900024
A118: Google42166 | B118: Google | C118: 2015-06-11 | D118: 534.6099854
A119: Google42167 | B119: Google | C119: 2015-06-12 | D119: 532.3300171
A120: Google42170 | B120: Google | C120: 2015-06-15 | D120: 527.2000122
A121: Google42171 | B121: Google | C121: 2015-06-16 | D121: 528.1500244
A122: Google42172 | B122: Google | C122: 2015-06-17 | D122: 529.2600098
A123: Google42173 | B123: Google | C123: 2015-06-18 | D123: 536.7299805
A124: Google42174 | B124: Google | C124: 2015-06-19 | D124: 536.6900024
A125: Google42177 | B125: Google | C125: 2015-06-22 | D125: 538.1900024
A126: Google42178 | B126: Google | C126: 2015-06-23 | D126: 540.4799805
A127: Google42179 | B127: Google | C127: 2015-06-24 | D127: 537.8400269
A128: Google42180 | B128: Google | C128: 2015-06-25 | D128: 535.2299805
A129: Google42181 | B129: Google | C129: 2015-06-26 | D129: 531.6900024
A130: Google42184 | B130: Google | C130: 2015-06-29 | D130: 521.5200195
A131: Google42185 | B131: Google | C131: 2015-06-30 | D131: 520.5100098
A132: Google42186 | B132: Google | C132: 2015-07-01 | D132: 521.8400269
A133: Google42187 | B133: Google | C133: 2015-07-02 | D133: 523.4000244
A134: Google42191 | B134: Google | C134: 2015-07-06 | D134: 522.8599854
A135: Google42192 | B135: Google | C135: 2015-07-07 | D135: 525.0200195
A136: =B136&C136 -> Google42193 | B136: Google | C136: 2015-07-08 | D136: 516.8300171
A137: Google42194 | B137: Google | C137: 2015-07-09 | D137: 520.6799927
A138: Google42198 | B138: Google | C138: 2015-07-13 | D138: 546.5499878
A139: Google42199 | B139: Google | C139: 2015-07-14 | D139: 561.0999756
A140: Google42200 | B140: Google | C140: 2015-07-15 | D140: 560.2199707
A141: Google42201 | B141: Google | C141: 2015-07-16 | D141: 579.8499756
A142: Google42202 | B142: Google | C142: 2015-07-17 | D142: 672.9299927
A143: Google42205 | B143: Google | C143: 2015-07-20 | D143: 663.0200195
A144: Google42206 | B144: Google | C144: 2015-07-21 | D144: 662.2999878
A145: Google42207 | B145: Google | C145: 2015-07-22 | D145: 662.0999756
A146: Google42208 | B146: Google | C146: 2015-07-23 | D146: 644.2800293
A147: Google42209 | B147: Google | C147: 2015-07-24 | D147: 623.5599976
A148: Google42212 | B148: Google | C148: 2015-07-27 | D148: 627.2600098
A149: Google42213 | B149: Google | C149: 2015-07-28 | D149: 628
A150: Google42214 | B150: Google | C150: 2015-07-29 | D150: 631.9299927
A151: Google42215 | B151: Google | C151: 2015-07-30 | D151: 632.5900269
A152: Google42216 | B152: Google | C152: 2015-07-31 | D152: 625.6099854
A153: Google42219 | B153: Google | C153: 2015-08-03 | D153: 631.210022
A154: Google42220 | B154: Google | C154: 2015-08-04 | D154: 629.25
A155: Google42221 | B155: Google | C155: 2015-08-05 | D155: 643.7800293
A156: Google42222 | B156: Google | C156: 2015-08-06 | D156: 642.6799927
A157: Google42223 | B157: Google | C157: 2015-08-07 | D157: 635.2999878
A158: Google42226 | B158: Google | C158: 2015-08-10 | D158: 633.7299805
A159: Google42227 | B159: Google | C159: 2015-08-11 | D159: 660.7800293
A160: Google42228 | B160: Google | C160: 2015-08-12 | D160: 659.5599976
A161: Google42229 | B161: Google | C161: 2015-08-13 | D161: 656.4500122
A162: Google42230 | B162: Google | C162: 2015-08-14 | D162: 657.1199951
A163: Google42233 | B163: Google | C163: 2015-08-17 | D163: 660.8699951
A164: Google42234 | B164: Google | C164: 2015-08-18 | D164: 656.1300049
A165: Google42235 | B165: Google | C165: 2015-08-19 | D165: 660.9000244
A166: Google42236 | B166: Google | C166: 2015-08-20 | D166: 646.8300171
A167: Google42237 | B167: Google | C167: 2015-08-21 | D167: 612.4799805
A168: Google42240 | B168: Google | C168: 2015-08-24 | D168: 589.6099854
A169: Google42241 | B169: Google | C169: 2015-08-25 | D169: 582.0599976
A170: Google42242 | B170: Google | C170: 2015-08-26 | D170: 628.6199951
A171: Google42243 | B171: Google | C171: 2015-08-27 | D171: 637.6099854
A172: Google42244 | B172: Google | C172: 2015-08-28 | D172: 630.3800049
A173: Google42247 | B173: Google | C173: 2015-08-31 | D173: 618.25
A174: Google42248 | B174: Google | C174: 2015-09-01 | D174: 597.789978
A175: Google42249 | B175: Google | C175: 2015-09-02 | D175: 614.3400269
A176: Google42250 | B176: Google | C176: 2015-09-03 | D176: 606.25
A177: Google42251 | B177: Google | C177: 2015-09-04 | D177: 600.7000122
A178: Google42255 | B178: Google | C178: 2015-09-08 | D178: 614.6599731
A179: Google42256 | B179: Google | C179: 2015-09-09 | D179: 612.7199707
A180: Google42257 | B180: Google | C180: 2015-09-10 | D180: 621.3499756
A181: Google42258 | B181: Google | C181: 2015-09-11 | D181: 625.7700195
A182: Google42261 | B182: Google | C182: 2015-09-14 | D182: 623.2399902
A183: Google42262 | B183: Google | C183: 2015-09-15 | D183: 635.1400146
A184: Google42263 | B184: Google | C184: 2015-09-16 | D184: 635.9799805
A185: Google42264 | B185: Google | C185: 2015-09-17 | D185: 642.9000244
A186: Google42265 | B186: Google | C186: 2015-09-18 | D186: 629.25
A187: Google42268 | B187: Google | C187: 2015-09-21 | D187: 635.4400024
A188: Google42269 | B188: Google | C188: 2015-09-22 | D188: 622.6900024
A189: Google42270 | B189: Google | C189: 2015-09-23 | D189: 622.3599854
A190: Google42271 | B190: Google | C190: 2015-09-24 | D190: 625.7999878
A191: Google42272 | B191: Google | C191: 2015-09-25 | D191: 611.9699707
A192: Google42275 | B192: Google | C192: 2015-09-28 | D192: 594.8900146
A193: Google42276 | B193: Google | C193: 2015-09-29 | D193: 594.9699707
A194: Google42277 | B194: Google | C194: 2015-09-30 | D194: 608.4199829
A195: Google42278 | B195: Google | C195: 2015-10-01 | D195: 611.289978
A196: Google42279 | B196: Google | C196: 2015-10-02 | D196: 626.9099731
A197: Google42282 | B197: Google | C197: 2015-10-05 | D197: 641.4699707
A198: Google42283 | B198: Google | C198: 2015-10-06 | D198: 645.4400024
A199: Google42284 | B199: Google | C199: 2015-10-07 | D199: 642.3599854
A200: =B200&C200 -> Google42285 | B200: Google | C200: 2015-10-08 | D200: 639.1599731
A201: Google42286 | B201: Google | C201: 2015-10-09 | D201: 643.6099854
A202: Google42289 | B202: Google | C202: 2015-10-12 | D202: 646.6699829
A203: Google42290 | B203: Google | C203: 2015-10-13 | D203: 652.2999878
A204: Google42291 | B204: Google | C204: 2015-10-14 | D204: 651.1599731
... 4558 more rows

Sheet Tržní data - kont. tabulka
A1: Práce s kontingenční tabulkou
A8: Průměr z Cena akcií | B8: Popisky sloupců
A9: Popisky řádků | B9: Google | C9: IBM | D9: JP Morgan | E9: Microsoft | F9: General Electric | G9: Celkový součet
A10: 2015
A11: Čtv1 | B11: 535.9708687 | C11: 158.649672 | D11: 59.2209836 | E11: 43.53475402 | F11: 24.83819668 | G11: 164.442895
A12: Čtv2 | B12: 535.7829851 | C12: 168.124285 | D12: 65.28952359 | E12: 45.62777764 | F12: 27.06047621 | G12: 168.3770095
A13: Čtv3 | B13: 615.9073002 | C13: 154.4600003 | D13: 65.49859416 | E13: 44.90445322 | F13: 25.57125002 | G13: 179.9058149
A14: Čtv4 | B14: 716.7846749 | C14: 140.5279682 | D14: 65.11562485 | E14: 52.62226558 | F14: 29.63640633 | G14: 197.6930654
A15: 2016
A16: Čtv1 | B16: 716.4008219 | C16: 133.610492 | D16: 58.40016381 | E16: 52.42172116 | F16: 29.46622942 | G16: 198.0598857
A17: Čtv2 | B17: 718.313282 | C17: 149.7310941 | D17: 62.46031243 | E17: 51.96468729 | F17: 30.4404687 | G17: 202.5819689
A18: Čtv3 | B18: 759.4248447 | C18: 158.7340622 | D18: 65.20281237 | E18: 56.44718719 | F18: 31.13109383 | G18: 214.1880001
A19: Čtv4 | B19: 779.0741902 | C19: 159.4029036 | D19: 76.25555577 | E19: 60.14698398 | F19: 30.30984128 | G19: 219.4519483
A20: 2017
A21: Čtv1 | B21: 820.1820017 | C21: 175.392903 | D21: 88.22145142 | E21: 64.08629048 | F21: 30.20241956 | G21: 231.8211367
A22: Čtv2 | B22: 917.5473763 | C22: 157.6960316 | D22: 86.28507923 | E22: 68.64825415 | F22: 28.60079369 | G22: 247.5012458
A23: Čtv3 | B23: 931.6429069 | C23: 145.721429 | D23: 92.21968224 | E23: 73.04587373 | F23: 25.22698421 | G23: 251.4119117
A24: Čtv4 | B24: 1017.919045 | C24: 152.1031751 | D24: 101.251587 | E24: 82.03031764 | F24: 19.9223809 | G24: 274.6453012
A25: 2018
A26: Čtv1 | B26: 1103.990324 | C26: 158.2598354 | D26: 113.2268849 | E26: 91.44999982 | F26: 15.45998367 | G26: 296.4774057
A27: Čtv2 | B27: 1080.685153 | C27: 145.8814065 | D27: 109.699844 | E27: 96.9203124 | F27: 13.91812506 | G27: 289.4209682
A28: Čtv3 | B28: 1197.939992 | C28: 146.1641269 | D28: 113.516984 | E28: 108.4074607 | F28: 12.86206351 | G28: 315.7781254
A29: Čtv4 | B29: 1148.23197 | C29: 147.8500015 | D29: 112.8789993 | E29: 111.5600006 | F29: 12.82099991 | G29: 306.6683943
A30: Celkový součet | B30: 833.4761862 | C30: 153.5430042 | D30: 81.7674186 | E30: 66.62312175 | F30: 24.86035575 | G30: 230.9321901

Sheet Kreditní riziko - data
A1: Ilustrativní příklad monitorování kreditního rizika
A5: Vstupy (zdroj: vlastní vymyšlená data) | N5: Výstupy
A8: Datum | B8: Region | C8: Zaměstnání | D8: Score | E8: Segment | F8: Částka | G8: Báze | H8: Default | J8: Score | K8: Segment | N8: Default rate celkem
A9: 2015-06-03 | B9: Praha Troja | C9: Nezaměstnaný | D9: 0.2604434436 | E9: =VLOOKUP(D9,$J$9:$K$13,2,TRUE) -> Dobrý | F9: 62250 | G9: 0 | H9: 0 | J9: 0 | K9: Nejlepší | N9: Počet defaultů | O9: Počet pozorování | P9: Default rate
A10: 2015-04-06 | B10: Praha Troja | C10: Nezaměstnaný | D10: 0.2944323433 | E10: Dobrý | F10: 40160 | G10: 1 | H10: 0 | J10: 0.2 | K10: Dobrý | N10: =SUM($H$9:$H$42311) -> 10558 | O10: =SUM($G$9:$G$42311) -> 21108 | P10: =N10/O10 -> 0.5001895016
A11: 2015-09-02 | B11: Praha Troja | C11: Nezaměstnaný | D11: 0.7246344102 | E11: Horší | F11: 44342 | G11: 1 | H11: 0 | J11: 0.7 | K11: Horší
A12: 2016-01-17 | B12: Praha Troja | C12: Nezaměstnaný | D12: 0.1214482415 | E12: Nejlepší | F12: 94856 | G12: 0 | H12: 0 | J12: 0.8 | K12: Ještě horší
A13: 2015-05-31 | B13: Praha Troja | C13: Nezaměstnaný | D13: 0.7204807763 | E13: Horší | F13: 51066 | G13: 0 | H13: 0 | J13: 0.9 | K13: Nejhorší | N13: Default rate dle regionu
A14: 2015-10-05 | B14: Praha Troja | C14: Nezaměstnaný | D14: 0.6490818152 | E14: Dobrý | F14: 65359 | G14: 1 | H14: 0 | N14: Region | O14: Počet defaultů | P14: Počet pozorování | Q14: Default rate
A15: 2015-10-15 | B15: Praha Karlín | C15: Nezaměstnaný | D15: 0.548807592 | E15: Dobrý | F15: 11375 | G15: 0 | H15: 0 | N15: Praha Troja | O15: =SUMIF($B$9:$B$42311,N15,$H$9:$H$42311) -> 6911 | P15: =SUMIF($B$9:$B$42311,N15,$G$9:$G$42311) -> 13725 | Q15: =O15/P15 -> 0.5035336976
A16: 2016-03-21 | B16: Praha Troja | C16: Nezaměstnaný | D16: 0.4356111425 | E16: Dobrý | F16: 96714 | G16: 0 | H16: 0 | N16: Praha Karlín | O16: =SUMIF($B$9:$B$42311,N16,$H$9:$H$42311) -> 2670 | P16: =SUMIF($B$9:$B$42311,N16,$G$9:$G$42311) -> 5407 | Q16: =O16/P16 -> 0.4938043277
A17: 2016-03-21 | B17: Praha Karlín | C17: Nezaměstnaný | D17: 0.7932037269 | E17: Horší | F17: 70895 | G17: 0 | H17: 0 | N17: Praha Karlov | O17: 977 | P17: =SUMIF($B$9:$B$42311,N17,$G$9:$G$42311) -> 1976 | Q17: =O17/P17 -> 0.4944331984
A18: 2015-05-04 | B18: Praha Troja | C18: Nezaměstnaný | D18: 0.9505622869 | E18: Nejhorší | F18: 53285 | G18: 1 | H18: 0
A19: 2016-03-31 | B19: Praha Troja | C19: Podnikatel | D19: 0.02722498498 | E19: Nejlepší | F19: 17335 | G19: 0 | H19: 0
A20: 2015-04-05 | B20: Praha Karlov | C20: Nezaměstnaný | D20: 0.7402179042 | E20: Horší | F20: 20381 | G20: 1 | H20: 0 | N20: Default rate dle score
A21: 2016-04-16 | B21: Praha Karlín | C21: Nezaměstnaný | D21: 0.5534549281 | E21: Dobrý | F21: 31849 | G21: 1 | H21: 0 | N21: Segment | O21: Počet defaultů | P21: Počet pozorování | Q21: Default rate
A22: 2016-04-16 | B22: Praha Troja | C22: Zaměstnanec | D22: 0.0239346205 | E22: Nejlepší | F22: 53104 | G22: 0 | H22: 0 | N22: Nejlepší | O22: =SUMIF($E$9:$E$42311,N22,$H$9:$H$42311) -> 2045 | P22: =SUMIF($E$9:$E$42311,N22,$G$9:$G$42311) -> 4194 | Q22: =O22/P22 -> 0.4876013352
A23: 2016-03-26 | B23: Praha Troja | C23: Nezaměstnaný | D23: 0.1241249753 | E23: Nejlepší | F23: 72584 | G23: 1 | H23: 0 | N23: Dobrý | O23: =SUMIF($E$9:$E$42311,N23,$H$9:$H$42311) -> 5351 | P23: =SUMIF($E$9:$E$42311,N23,$G$9:$G$42311) -> 10751 | Q23: =O23/P23 -> 0.4977211422
A24: 2015-04-10 | B24: Praha Troja | C24: Zaměstnanec | D24: 0.02078156921 | E24: Nejlepší | F24: 32251 | G24: 0 | H24: 0 | N24: Horší | O24: 1044 | P24: 2063 | Q24: =O24/P24 -> 0.5060591372
A25: 2016-03-23 | B25: Praha Karlín | C25: Nezaměstnaný | D25: 0.6455151839 | E25: Dobrý | F25: 13014 | G25: 0 | H25: 0 | N25: Nejhorší | O25: 1012 | P25: 2019 | Q25: =O25/P25 -> 0.5012382368
A26: 2015-04-12 | B26: Praha Karlín | C26: Nezaměstnaný | D26: 0.4899472166 | E26: Dobrý | F26: 34392 | G26: 1 | H26: 0
A27: 2016-02-12 | B27: Praha Troja | C27: Nezaměstnaný | D27: 0.6904891156 | E27: Dobrý | F27: 65346 | G27: 0 | H27: 0 | N27: Default rate dle zaměstnání
A28: 2016-02-05 | B28: Praha Troja | C28: Podnikatel | D28: 0.03003152583 | E28: Nejlepší | F28: 58897 | G28: 1 | H28: 1 | N28: Segment | O28: Počet defaultů | P28: Počet pozorování | Q28: Default rate
A29: 2016-03-26 | B29: Praha Troja | C29: Nezaměstnaný | D29: 0.6223053645 | E29: Dobrý | F29: 85918 | G29: 0 | H29: 0 | N29: Nezaměstnaný | O29: =SUMIF($C$9:$C$42311,N29,$H$9:$H$42311) -> 9532 | P29: =SUMIF($C$9:$C$42311,N29,$G$9:$G$42311) -> 19024 | Q29: =O29/P29 -> 0.5010513036
A30: 2016-03-26 | B30: Praha Troja | C30: Nezaměstnaný | D30: 0.3918387286 | E30: Dobrý | F30: 11310 | G30: 1 | H30: 0 | N30: Podnikatel | O30: =SUMIF($C$9:$C$42311,N30,$H$9:$H$42311) -> 415 | P30: =SUMIF($C$9:$C$42311,N30,$G$9:$G$42311) -> 840 | Q30: =O30/P30 -> 0.494047619
A31: 2015-04-05 | B31: Praha Troja | C31: Nezaměstnaný | D31: 0.6974027244 | E31: Dobrý | F31: 85237 | G31: 1 | H31: 0 | N31: Zaměstnanec | O31: 611 | P31: 1244 | Q31: =O31/P31 -> 0.4911575563
A32: 2016-02-12 | B32: Praha Troja | C32: Nezaměstnaný | D32: 0.1164887988 | E32: Nejlepší | F32: 28578 | G32: 0 | H32: 0
A33: 2015-01-27 | B33: Praha Troja | C33: Nezaměstnaný | D33: 0.2063190034 | E33: Dobrý | F33: 34710 | G33: 1 | H33: 1
A34: 2015-07-02 | B34: Praha Troja | C34: Nezaměstnaný | D34: 0.2336121762 | E34: Dobrý | F34: 64287 | G34: 1 | H34: 1
A35: 2015-01-23 | B35: Praha Troja | C35: Nezaměstnaný | D35: 0.7117079115 | E35: Horší | F35: 26204 | G35: 1 | H35: 1
A36: 2016-04-16 | B36: Praha Karlín | C36: Nezaměstnaný | D36: 0.8821468589 | E36: Ještě horší | F36: 66041 | G36: 1 | H36: 0
A37: 2016-04-16 | B37: Praha Troja | C37: Nezaměstnaný | D37: 0.7775971242 | E37: Horší | F37: 91034 | G37: 1 | H37: 1
A38: 2016-02-25 | B38: Praha Karlín | C38: Nezaměstnaný | D38: 0.9897314829 | E38: Nejhorší | F38: 96940 | G38: 0 | H38: 0
A39: 2015-03-20 | B39: Praha Troja | C39: Nezaměstnaný | D39: 0.4313169715 | E39: Dobrý | F39: 72778 | G39: 1 | H39: 0
A40: 2016-04-14 | B40: Praha Troja | C40: Nezaměstnaný | D40: 0.6592112341 | E40: Dobrý | F40: 61581 | G40: 0 | H40: 0
A41: 2015-09-03 | B41: Praha Troja | C41: Nezaměstnaný | D41: 0.1469991029 | E41: Nejlepší | F41: 24008 | G41: 1 | H41: 0
A42: 2016-04-09 | B42: Praha Troja | C42: Nezaměstnaný | D42: 0.5364224429 | E42: Dobrý | F42: 59921 | G42: 1 | H42: 0
A43: 2015-07-24 | B43: Praha Troja | C43: Nezaměstnaný | D43: 0.7351839854 | E43: Horší | F43: 16413 | G43: 1 | H43: 1
A44: 2015-06-17 | B44: Praha Karlín | C44: Zaměstnanec | D44: 0.02804981668 | E44: Nejlepší | F44: 82419 | G44: 1 | H44: 1
A45: 2015-04-05 | B45: Praha Troja | C45: Nezaměstnaný | D45: 0.4147254399 | E45: Dobrý | F45: 14917 | G45: 1 | H45: 1
A46: 2015-01-11 | B46: Praha Troja | C46: Nezaměstnaný | D46: 0.7392383381 | E46: Horší | F46: 67467 | G46: 0 | H46: 0
A47: 2016-03-23 | B47: Praha Troja | C47: Nezaměstnaný | D47: 0.2343666798 | E47: Dobrý | F47: 18534 | G47: 1 | H47: 1
A48: 2016-03-28 | B48: Praha Troja | C48: Nezaměstnaný | D48: 0.9430203478 | E48: Nejhorší | F48: 25154 | G48: 1 | H48: 1
A49: 2015-04-27 | B49: Praha Karlín | C49: Nezaměstnaný | D49: 0.2405955386 | E49: Dobrý | F49: 59637 | G49: 0 | H49: 0
A50: 2015-06-27 | B50: Praha Troja | C50: Podnikatel | D50: 0.007069615089 | E50: Nejlepší | F50: 93527 | G50: 0 | H50: 0
A51: 2016-03-16 | B51: Praha Karlín | C51: Nezaměstnaný | D51: 0.6318557473 | E51: Dobrý | F51: 61924 | G51: 0 | H51: 0
A52: 2015-04-27 | B52: Praha Karlín | C52: Nezaměstnaný | D52: 0.2830461125 | E52: Dobrý | F52: 49666 | G52: 1 | H52: 0
A53: 2016-03-25 | B53: Praha Troja | C53: Nezaměstnaný | D53: 0.6135622969 | E53: Dobrý | F53: 62562 | G53: 1 | H53: 1
A54: 2016-04-02 | B54: Praha Karlín | C54: Nezaměstnaný | D54: 0.6719410596 | E54: Dobrý | F54: 45587 | G54: 0 | H54: 0
A55: 2016-04-02 | B55: Praha Karlín | C55: Nezaměstnaný | D55: 0.104756821 | E55: Nejlepší | F55: 98740 | G55: 0 | H55: 0
A56: 2016-03-25 | B56: Praha Karlov | C56: Nezaměstnaný | D56: 0.879616763 | E56: Ještě horší | F56: 34092 | G56: 0 | H56: 0
A57: 2016-03-25 | B57: Praha Troja | C57: Nezaměstnaný | D57: 0.2541206695 | E57: Dobrý | F57: 40881 | G57: 0 | H57: 0
A58: 2016-03-25 | B58: Praha Troja | C58: Nezaměstnaný | D58: 0.8516680656 | E58: Ještě horší | F58: 57784 | G58: 0 | H58: 0
A59: 2016-01-09 | B59: Praha Troja | C59: Nezaměstnaný | D59: 0.8970778828 | E59: Ještě horší | F59: 94302 | G59: 1 | H59: 1
A60: 2015-10-11 | B60: Praha Troja | C60: Nezaměstnaný | D60: 0.4327857831 | E60: Dobrý | F60: 26219 | G60: 1 | H60: 1
A61: 2016-02-05 | B61: Praha Troja | C61: Nezaměstnaný | D61: 0.8372595435 | E61: Ještě horší | F61: 91201 | G61: 0 | H61: 0
A62: 2016-01-09 | B62: Praha Troja | C62: Nezaměstnaný | D62: 0.4293370082 | E62: Dobrý | F62: 87650 | G62: 1 | H62: 1
A63: 2015-09-11 | B63: Praha Troja | C63: Nezaměstnaný | D63: 0.109178445 | E63: Nejlepší | F63: 29403 | G63: 0 | H63: 0
A64: 2016-02-14 | B64: Praha Troja | C64: Nezaměstnaný | D64: 0.7332272239 | E64: Horší | F64: 53467 | G64: 1 | H64: 0
A65: 2016-03-03 | B65: Praha Troja | C65: Nezaměstnaný | D65: 0.2218959162 | E65: Dobrý | F65: 63066 | G65: 0 | H65: 0
A66: 2016-03-14 | B66: Praha Troja | C66: Nezaměstnaný | D66: 0.7030965407 | E66: Horší | F66: 91047 | G66: 0 | H66: 0
A67: 2016-01-22 | B67: Praha Troja | C67: Nezaměstnaný | D67: 0.1326653751 | E67: Nejlepší | F67: 79182 | G67: 1 | H67: 0
A68: 2015-11-20 | B68: Praha Karlín | C68: Nezaměstnaný | D68: 0.1370476657 | E68: Nejlepší | F68: 25402 | G68: 1 | H68: 1
A69: 2016-01-29 | B69: Praha Troja | C69: Nezaměstnaný | D69: 0.6472703194 | E69: Dobrý | F69: 94025 | G69: 1 | H69: 0
A70: 2015-10-01 | B70: Praha Karlín | C70: Nezaměstnaný | D70: 0.6448107009 | E70: Dobrý | F70: 99729 | G70: 0 | H70: 0
A71: 2016-02-15 | B71: Praha Troja | C71: Nezaměstnaný | D71: 0.4307800294 | E71: Dobrý | F71: 33012 | G71: 1 | H71: 1
A72: 2015-03-20 | B72: Praha Troja | C72: Nezaměstnaný | D72: 0.1158376267 | E72: Nejlepší | F72: 13199 | G72: 0 | H72: 0
A73: 2016-01-04 | B73: Praha Troja | C73: Zaměstnanec | D73: 0.002535693799 | E73: =VLOOKUP(D73,$J$9:$K$13,2,TRUE) -> Nejlepší | F73: 94515 | G73: 1 | H73: 1
A74: 2016-02-02 | B74: Praha Troja | C74: Nezaměstnaný | D74: 0.5913808796 | E74: Dobrý | F74: 98389 | G74: 1 | H74: 1
A75: 2015-12-05 | B75: Praha Troja | C75: Nezaměstnaný | D75: 0.4113476034 | E75: Dobrý | F75: 42994 | G75: 0 | H75: 0
A76: 2016-01-06 | B76: Praha Troja | C76: Nezaměstnaný | D76: 0.3644818556 | E76: Dobrý | F76: 81849 | G76: 0 | H76: 0
A77: 2016-01-22 | B77: Praha Troja | C77: Nezaměstnaný | D77: 0.8343569422 | E77: Ještě horší | F77: 52098 | G77: 1 | H77: 0
A78: 2015-12-30 | B78: Praha Troja | C78: Nezaměstnaný | D78: 0.7205292651 | E78: Horší | F78: 81418 | G78: 0 | H78: 0
A79: 2016-02-08 | B79: Praha Troja | C79: Nezaměstnaný | D79: 0.7916989538 | E79: Horší | F79: 89523 | G79: 1 | H79: 0
A80: 2016-02-19 | B80: Praha Troja | C80: Nezaměstnaný | D80: 0.9611317199 | E80: Nejhorší | F80: 72056 | G80: 0 | H80: 0
A81: 2015-10-15 | B81: Praha Karlín | C81: Nezaměstnaný | D81: 0.2285039668 | E81: Dobrý | F81: 18854 | G81: 0 | H81: 0
A82: 2015-12-28 | B82: Praha Karlov | C82: Podnikatel | D82: 0.09825986471 | E82: Nejlepší | F82: 89179 | G82: 1 | H82: 1
A83: 2015-10-17 | B83: Praha Troja | C83: Nezaměstnaný | D83: 0.1569143374 | E83: Nejlepší | F83: 46748 | G83: 0 | H83: 0
A84: 2016-03-30 | B84: Praha Troja | C84: Nezaměstnaný | D84: 0.146655235 | E84: Nejlepší | F84: 63307 | G84: 1 | H84: 0
A85: 2016-04-21 | B85: Praha Troja | C85: Nezaměstnaný | D85: 0.1245211213 | E85: Nejlepší | F85: 69294 | G85: 0 | H85: 0
A86: 2016-04-30 | B86: Praha Troja | C86: Nezaměstnaný | D86: 0.5320326195 | E86: Dobrý | F86: 56056 | G86: 0 | H86: 0
A87: 2016-04-30 | B87: Praha Troja | C87: Nezaměstnaný | D87: 0.3947287858 | E87: Dobrý | F87: 57506 | G87: 1 | H87: 1
A88: 2016-04-30 | B88: Praha Troja | C88: Nezaměstnaný | D88: 0.8512405985 | E88: Ještě horší | F88: 79591 | G88: 0 | H88: 0
A89: 2016-03-05 | B89: Praha Karlín | C89: Nezaměstnaný | D89: 0.3858562463 | E89: Dobrý | F89: 22066 | G89: 0 | H89: 0
A90: 2016-04-13 | B90: Praha Troja | C90: Zaměstnanec | D90: 0.06857795176 | E90: Nejlepší | F90: 76416 | G90: 0 | H90: 0
A91: 2016-04-04 | B91: Praha Karlín | C91: Nezaměstnaný | D91: 0.2344520709 | E91: Dobrý | F91: 79380 | G91: 0 | H91: 0
A92: 2015-11-25 | B92: Praha Troja | C92: Nezaměstnaný | D92: 0.1524440175 | E92: Nejlepší | F92: 81368 | G92: 1 | H92: 1
A93: 2016-01-27 | B93: Praha Troja | C93: Nezaměstnaný | D93: 0.3659268103 | E93: Dobrý | F93: 80889 | G93: 1 | H93: 0
A94: 2015-08-07 | B94: Praha Troja | C94: Nezaměstnaný | D94: 0.8753707152 | E94: Ještě horší | F94: 35732 | G94: 1 | H94: 0
A95: 2015-06-07 | B95: Praha Troja | C95: Nezaměstnaný | D95: 0.6637661747 | E95: Dobrý | F95: 94652 | G95: 1 | H95: 1
A96: 2016-02-24 | B96: Praha Karlov | C96: Nezaměstnaný | D96: 0.8243143941 | E96: Ještě horší | F96: 65393 | G96: 1 | H96: 1
A97: 2015-09-08 | B97: Praha Troja | C97: Nezaměstnaný | D97: 0.4773454506 | E97: Dobrý | F97: 97174 | G97: 1 | H97: 0
A98: 2015-08-26 | B98: Praha Troja | C98: Nezaměstnaný | D98: 0.4752326794 | E98: Dobrý | F98: 36848 | G98: 0 | H98: 0
A99: 2016-01-18 | B99: Praha Troja | C99: Nezaměstnaný | D99: 0.8784933157 | E99: Ještě horší | F99: 47142 | G99: 0 | H99: 0
A100: 2015-01-12 | B100: Praha Karlov | C100: Nezaměstnaný | D100: 0.6728714812 | E100: Dobrý | F100: 64999 | G100: 1 | H100: 1
A101: 2015-11-30 | B101: Praha Troja | C101: Podnikatel | D101: 0.0141155415 | E101: Nejlepší | F101: 72757 | G101: 1 | H101: 0
A102: 2015-08-23 | B102: Praha Troja | C102: Nezaměstnaný | D102: 0.8124399577 | E102: Ještě horší | F102: 46284 | G102: 0 | H102: 0
A103: 2015-05-17 | B103: Praha Karlín | C103: Nezaměstnaný | D103: 0.3018987234 | E103: Dobrý | F103: 25797 | G103: 0 | H103: 0
A104: 2016-02-08 | B104: Praha Troja | C104: Nezaměstnaný | D104: 0.5627293142 | E104: Dobrý | F104: 80444 | G104: 0 | H104: 0
A105: 2015-06-27 | B105: Praha Karlov | C105: Nezaměstnaný | D105: 0.8498345235 | E105: Ještě horší | F105: 81629 | G105: 1 | H105: 0
A106: 2015-05-01 | B106: Praha Troja | C106: Nezaměstnaný | D106: 0.1578203751 | E106: Nejlepší | F106: 99354 | G106: 1 | H106: 0
A107: 2015-12-15 | B107: Praha Troja | C107: Nezaměstnaný | D107: 0.1142686659 | E107: Nejlepší | F107: 76383 | G107: 0 | H107: 0
A108: 2016-03-15 | B108: Praha Troja | C108: Nezaměstnaný | D108: 0.8494655738 | E108: Ještě horší | F108: 43074 | G108: 0 | H108: 0
A109: 2015-03-03 | B109: Praha Karlín | C109: Nezaměstnaný | D109: 0.3850359699 | E109: Dobrý | F109: 87737 | G109: 1 | H109: 1
A110: 2015-04-29 | B110: Praha Troja | C110: Nezaměstnaný | D110: 0.1741013542 | E110: Nejlepší | F110: 42957 | G110: 0 | H110: 0
A111: 2015-01-09 | B111: Praha Troja | C111: Nezaměstnaný | D111: 0.7992503653 | E111: Horší | F111: 42228 | G111: 0 | H111: 0
A112: 2015-12-21 | B112: Praha Troja | C112: Nezaměstnaný | D112: 0.1854793883 | E112: Nejlepší | F112: 59537 | G112: 1 | H112: 0
A113: 2016-03-06 | B113: Praha Troja | C113: Podnikatel | D113: 0.06469973053 | E113: Nejlepší | F113: 73557 | G113: 1 | H113: 1
A114: 2015-08-16 | B114: Praha Troja | C114: Nezaměstnaný | D114: 0.5634758828 | E114: Dobrý | F114: 13356 | G114: 1 | H114: 0
A115: 2015-12-08 | B115: Praha Karlín | C115: Nezaměstnaný | D115: 0.4082959388 | E115: Dobrý | F115: 17394 | G115: 0 | H115: 0
A116: 2015-10-31 | B116: Praha Troja | C116: Zaměstnanec | D116: 0.02899546529 | E116: Nejlepší | F116: 19988 | G116: 0 | H116: 0
A117: 2015-02-08 | B117: Praha Karlín | C117: Nezaměstnaný | D117: 0.6626863378 | E117: Dobrý | F117: 94047 | G117: 0 | H117: 0
A118: 2015-09-04 | B118: Praha Karlov | C118: Nezaměstnaný | D118: 0.6365071037 | E118: Dobrý | F118: 85897 | G118: 0 | H118: 0
A119: 2015-08-07 | B119: Praha Troja | C119: Nezaměstnaný | D119: 0.8240647853 | E119: Ještě horší | F119: 67746 | G119: 1 | H119: 1
A120: 2016-03-07 | B120: Praha Troja | C120: Nezaměstnaný | D120: 0.5828055863 | E120: Dobrý | F120: 82405 | G120: 1 | H120: 0
A121: 2015-09-06 | B121: Praha Troja | C121: Zaměstnanec | D121: 0.005009437743 | E121: Nejlepší | F121: 18994 | G121: 1 | H121: 0
A122: 2015-02-19 | B122: Praha Troja | C122: Nezaměstnaný | D122: 0.3246527348 | E122: Dobrý | F122: 12728 | G122: 1 | H122: 1
A123: 2015-12-08 | B123: Praha Troja | C123: Nezaměstnaný | D123: 0.8410324136 | E123: Ještě horší | F123: 23936 | G123: 0 | H123: 0
A124: 2015-08-23 | B124: Praha Karlín | C124: Nezaměstnaný | D124: 0.9501096683 | E124: Nejhorší | F124: 56382 | G124: 1 | H124: 1
A125: 2015-03-20 | B125: Praha Troja | C125: Nezaměstnaný | D125: 0.7983736822 | E125: Horší | F125: 60956 | G125: 0 | H125: 0
A126: 2015-05-28 | B126: Praha Troja | C126: Nezaměstnaný | D126: 0.5738171296 | E126: Dobrý | F126: 74039 | G126: 1 | H126: 1
A127: 2015-09-26 | B127: Praha Karlín | C127: Nezaměstnaný | D127: 0.352761548 | E127: Dobrý | F127: 45388 | G127: 0 | H127: 0
A128: 2016-01-27 | B128: Praha Karlov | C128: Zaměstnanec | D128: 0.06272405862 | E128: Nejlepší | F128: 80591 | G128: 0 | H128: 0
A129: 2015-02-24 | B129: Praha Karlov | C129: Nezaměstnaný | D129: 0.9844687498 | E129: Nejhorší | F129: 10136 | G129: 0 | H129: 0
A130: 2016-01-25 | B130: Praha Troja | C130: Nezaměstnaný | D130: 0.1112133819 | E130: Nejlepší | F130: 77932 | G130: 0 | H130: 0
A131: 2016-02-14 | B131: Praha Troja | C131: Nezaměstnaný | D131: 0.3037290833 | E131: Dobrý | F131: 97445 | G131: 1 | H131: 1
A132: 2015-12-21 | B132: Praha Troja | C132: Nezaměstnaný | D132: 0.3669671328 | E132: Dobrý | F132: 26754 | G132: 1 | H132: 0
A133: 2015-12-27 | B133: Praha Karlín | C133: Nezaměstnaný | D133: 0.8491707411 | E133: Ještě horší | F133: 86149 | G133: 0 | H133: 0
A134: 2016-01-21 | B134: Praha Karlín | C134: Nezaměstnaný | D134: 0.747160741 | E134: Horší | F134: 74835 | G134: 0 | H134: 0
A135: 2015-12-03 | B135: Praha Karlín | C135: Zaměstnanec | D135: 0.0266044845 | E135: Nejlepší | F135: 51753 | G135: 0 | H135: 0
A136: 2016-03-11 | B136: Praha Troja | C136: Nezaměstnaný | D136: 0.8354939573 | E136: Ještě horší | F136: 96001 | G136: 0 | H136: 0
A137: 2016-03-12 | B137: Praha Troja | C137: Nezaměstnaný | D137: 0.83736257 | E137: =VLOOKUP(D137,$J$9:$K$13,2,TRUE) -> Ještě horší | F137: 32994 | G137: 0 | H137: 0
A138: 2016-04-06 | B138: Praha Troja | C138: Nezaměstnaný | D138: 0.2561724001 | E138: Dobrý | F138: 76193 | G138: 1 | H138: 1
A139: 2016-04-30 | B139: Praha Troja | C139: Nezaměstnaný | D139: 0.6618911469 | E139: Dobrý | F139: 78889 | G139: 1 | H139: 1
A140: 2016-04-01 | B140: Praha Troja | C140: Nezaměstnaný | D140: 0.730433658 | E140: Horší | F140: 60697 | G140: 1 | H140: 0
A141: 2016-04-30 | B141: Praha Troja | C141: Nezaměstnaný | D141: 0.4895814637 | E141: Dobrý | F141: 83942 | G141: 0 | H141: 0
A142: 2016-04-30 | B142: Praha Troja | C142: Nezaměstnaný | D142: 0.2576006285 | E142: Dobrý | F142: 62564 | G142: 0 | H142: 0
A143: 2016-03-19 | B143: Praha Troja | C143: Nezaměstnaný | D143: 0.6840478151 | E143: Dobrý | F143: 58648 | G143: 1 | H143: 1
A144: 2016-04-15 | B144: Praha Troja | C144: Nezaměstnaný | D144: 0.4383760628 | E144: Dobrý | F144: 86304 | G144: 0 | H144: 0
A145: 2016-04-28 | B145: Praha Karlín | C145: Nezaměstnaný | D145: 0.6279870634 | E145: Dobrý | F145: 59744 | G145: 0 | H145: 0
A146: 2016-04-30 | B146: Praha Troja | C146: Nezaměstnaný | D146: 0.9617115623 | E146: Nejhorší | F146: 10110 | G146: 1 | H146: 1
A147: 2015-12-30 | B147: Praha Troja | C147: Nezaměstnaný | D147: 0.8987744233 | E147: Ještě horší | F147: 10716 | G147: 0 | H147: 0
A148: 2015-12-27 | B148: Praha Karlín | C148: Nezaměstnaný | D148: 0.7814994344 | E148: Horší | F148: 70054 | G148: 0 | H148: 0
A149: 2015-03-15 | B149: Praha Troja | C149: Nezaměstnaný | D149: 0.9628238309 | E149: Nejhorší | F149: 25787 | G149: 0 | H149: 0
A150: 2015-06-03 | B150: Praha Karlov | C150: Nezaměstnaný | D150: 0.4705521329 | E150: Dobrý | F150: 40800 | G150: 1 | H150: 0
A151: 2015-11-02 | B151: Praha Karlín | C151: Nezaměstnaný | D151: 0.9887418827 | E151: Nejhorší | F151: 86772 | G151: 0 | H151: 0
A152: 2015-06-06 | B152: Praha Troja | C152: Nezaměstnaný | D152: 0.8908932756 | E152: Ještě horší | F152: 78721 | G152: 0 | H152: 0
A153: 2015-08-17 | B153: Praha Karlov | C153: Nezaměstnaný | D153: 0.4078122937 | E153: Dobrý | F153: 62255 | G153: 1 | H153: 1
A154: 2015-01-08 | B154: Praha Karlín | C154: Nezaměstnaný | D154: 0.5407249543 | E154: Dobrý | F154: 93206 | G154: 0 | H154: 0
A155: 2015-04-21 | B155: Praha Troja | C155: Nezaměstnaný | D155: 0.6313052032 | E155: Dobrý | F155: 33185 | G155: 0 | H155: 0
A156: 2015-09-16 | B156: Praha Troja | C156: Nezaměstnaný | D156: 0.9751625494 | E156: Nejhorší | F156: 43045 | G156: 1 | H156: 1
A157: 2015-10-31 | B157: Praha Troja | C157: Nezaměstnaný | D157: 0.5666094176 | E157: Dobrý | F157: 29266 | G157: 1 | H157: 0
A158: 2015-12-07 | B158: Praha Troja | C158: Nezaměstnaný | D158: 0.9876263266 | E158: Nejhorší | F158: 29802 | G158: 1 | H158: 1
A159: 2015-03-27 | B159: Praha Troja | C159: Nezaměstnaný | D159: 0.7133727942 | E159: Horší | F159: 69497 | G159: 1 | H159: 1
A160: 2015-05-23 | B160: Praha Karlín | C160: Nezaměstnaný | D160: 0.5897093893 | E160: Dobrý | F160: 42781 | G160: 0 | H160: 0
A161: 2015-11-17 | B161: Praha Karlín | C161: Nezaměstnaný | D161: 0.4003657134 | E161: Dobrý | F161: 18286 | G161: 1 | H161: 0
A162: 2015-12-14 | B162: Praha Karlín | C162: Podnikatel | D162: 0.02915191786 | E162: Nejlepší | F162: 85123 | G162: 0 | H162: 0
A163: 2015-03-03 | B163: Praha Karlov | C163: Nezaměstnaný | D163: 0.4095409696 | E163: Dobrý | F163: 10821 | G163: 1 | H163: 1
A164: 2015-05-31 | B164: Praha Troja | C164: Nezaměstnaný | D164: 0.8893981119 | E164: Ještě horší | F164: 96730 | G164: 1 | H164: 1
A165: 2015-07-19 | B165: Praha Troja | C165: Nezaměstnaný | D165: 0.2520130308 | E165: Dobrý | F165: 74802 | G165: 0 | H165: 0
A166: 2015-10-11 | B166: Praha Karlín | C166: Nezaměstnaný | D166: 0.1615441296 | E166: Nejlepší | F166: 81930 | G166: 0 | H166: 0
A167: 2016-01-28 | B167: Praha Troja | C167: Nezaměstnaný | D167: 0.5695551102 | E167: Dobrý | F167: 72187 | G167: 0 | H167: 0
A168: 2016-01-07 | B168: Praha Troja | C168: Nezaměstnaný | D168: 0.1552308997 | E168: Nejlepší | F168: 71031 | G168: 1 | H168: 0
A169: 2015-04-01 | B169: Praha Karlov | C169: Nezaměstnaný | D169: 0.5618602403 | E169: Dobrý | F169: 81524 | G169: 1 | H169: 1
A170: 2015-03-04 | B170: Praha Troja | C170: Nezaměstnaný | D170: 0.3515826085 | E170: Dobrý | F170: 36386 | G170: 0 | H170: 0
A171: 2015-11-08 | B171: Praha Troja | C171: Nezaměstnaný | D171: 0.1555879866 | E171: Nejlepší | F171: 13489 | G171: 0 | H171: 0
A172: 2015-09-20 | B172: Praha Troja | C172: Nezaměstnaný | D172: 0.9197310337 | E172: Nejhorší | F172: 88079 | G172: 1 | H172: 1
A173: 2015-07-18 | B173: Praha Troja | C173: Nezaměstnaný | D173: 0.6334191362 | E173: Dobrý | F173: 11793 | G173: 1 | H173: 1
A174: 2015-12-24 | B174: Praha Troja | C174: Nezaměstnaný | D174: 0.5472091185 | E174: Dobrý | F174: 69525 | G174: 1 | H174: 1
A175: 2015-08-31 | B175: Praha Troja | C175: Nezaměstnaný | D175: 0.5780676333 | E175: Dobrý | F175: 35059 | G175: 0 | H175: 0
A176: 2016-01-11 | B176: Praha Karlín | C176: Nezaměstnaný | D176: 0.9861038001 | E176: Nejhorší | F176: 19812 | G176: 0 | H176: 0
A177: 2015-05-16 | B177: Praha Troja | C177: Nezaměstnaný | D177: 0.2868429715 | E177: Dobrý | F177: 70052 | G177: 0 | H177: 0
A178: 2015-08-06 | B178: Praha Karlín | C178: Nezaměstnaný | D178: 0.3509094505 | E178: Dobrý | F178: 11429 | G178: 0 | H178: 0
A179: 2015-03-20 | B179: Praha Karlín | C179: Nezaměstnaný | D179: 0.9281014569 | E179: Nejhorší | F179: 50611 | G179: 1 | H179: 0
A180: 2015-03-27 | B180: Praha Troja | C180: Nezaměstnaný | D180: 0.8670676823 | E180: Ještě horší | F180: 29526 | G180: 0 | H180: 0
A181: 2015-07-28 | B181: Praha Troja | C181: Zaměstnanec | D181: 0.03155026527 | E181: Nejlepší | F181: 83422 | G181: 1 | H181: 1
A182: 2015-04-05 | B182: Praha Troja | C182: Nezaměstnaný | D182: 0.8648381883 | E182: Ještě horší | F182: 90461 | G182: 0 | H182: 0
A183: 2015-12-07 | B183: Praha Karlín | C183: Nezaměstnaný | D183: 0.5296085385 | E183: Dobrý | F183: 57104 | G183: 1 | H183: 1
A184: 2015-12-25 | B184: Praha Troja | C184: Nezaměstnaný | D184: 0.3438809096 | E184: Dobrý | F184: 77500 | G184: 1 | H184: 0
A185: 2016-04-14 | B185: Praha Karlov | C185: Nezaměstnaný | D185: 0.132076281 | E185: Nejlepší | F185: 15488 | G185: 0 | H185: 0
A186: 2015-11-09 | B186: Praha Troja | C186: Nezaměstnaný | D186: 0.3055869161 | E186: Dobrý | F186: 80188 | G186: 1 | H186: 0
A187: 2015-05-23 | B187: Praha Troja | C187: Nezaměstnaný | D187: 0.9266023986 | E187: Nejhorší | F187: 52738 | G187: 0 | H187: 0
A188: 2015-07-15 | B188: Praha Troja | C188: Nezaměstnaný | D188: 0.8258659348 | E188: Ještě horší | F188: 39626 | G188: 1 | H188: 1
A189: 2016-04-30 | B189: Praha Troja | C189: Nezaměstnaný | D189: 0.1425344535 | E189: Nejlepší | F189: 58381 | G189: 0 | H189: 0
A190: 2015-05-13 | B190: Praha Karlín | C190: Nezaměstnaný | D190: 0.5914615215 | E190: Dobrý | F190: 91000 | G190: 1 | H190: 0
A191: 2015-08-01 | B191: Praha Troja | C191: Nezaměstnaný | D191: 0.4063861613 | E191: Dobrý | F191: 14281 | G191: 0 | H191: 0
A192: 2015-10-30 | B192: Praha Karlín | C192: Nezaměstnaný | D192: 0.3960397915 | E192: Dobrý | F192: 29578 | G192: 1 | H192: 0
A193: 2016-04-08 | B193: Praha Karlín | C193: Nezaměstnaný | D193: 0.832585464 | E193: Ještě horší | F193: 85358 | G193: 1 | H193: 1
A194: 2016-03-15 | B194: Praha Troja | C194: Nezaměstnaný | D194: 0.2157068836 | E194: Dobrý | F194: 59137 | G194: 1 | H194: 1
A195: 2016-02-24 | B195: Praha Troja | C195: Nezaměstnaný | D195: 0.8769266257 | E195: Ještě horší | F195: 78104 | G195: 1 | H195: 1
A196: 2016-01-30 | B196: Praha Troja | C196: Nezaměstnaný | D196: 0.7221083013 | E196: Horší | F196: 30984 | G196: 0 | H196: 0
A197: 2016-02-15 | B197: Praha Troja | C197: Nezaměstnaný | D197: 0.1079626074 | E197: Nejlepší | F197: 71806 | G197: 1 | H197: 0
A198: 2016-02-26 | B198: Praha Troja | C198: Nezaměstnaný | D198: 0.9201010782 | E198: Nejhorší | F198: 17996 | G198: 1 | H198: 1
A199: 2015-02-21 | B199: Praha Troja | C199: Nezaměstnaný | D199: 0.9759900538 | E199: Nejhorší | F199: 80247 | G199: 1 | H199: 0
A200: 2016-02-16 | B200: Praha Karlín | C200: Nezaměstnaný | D200: 0.7078278243 | E200: Horší | F200: 68084 | G200: 1 | H200: 0
A201: 2016-03-02 | B201: Praha Karlín | C201: Nezaměstnaný | D201: 0.8209471783 | E201: =VLOOKUP(D201,$J$9:$K$13,2,TRUE) -> Ještě horší | F201: 79452 | G201: 0 | H201: 0
A202: 2015-12-31 | B202: Praha Karlín | C202: Podnikatel | D202: 0.08727692711 | E202: Nejlepší | F202: 66734 | G202: 1 | H202: 0
A203: 2015-07-31 | B203: Praha Troja | C203: Nezaměstnaný | D203: 0.5995491828 | E203: Dobrý | F203: 40115 | G203: 0 | H203: 0
A204: 2015-02-28 | B204: Praha Troja | C204: Nezaměstnaný | D204: 0.3208668882 | E204: Dobrý | F204: 20360 | G204: 0 | H204: 0
A205: 2016-02-10 | B205: Praha Troja | C205: Nezaměstnaný | D205: 0.9129857715 | E205: Nejhorší | F205: 37350 | G205: 1 | H205: 1
... 4295 more rows

Sheet List1
A1: Výpočtové pole
A2: Pořadí řešení | B2: Pole | C2: Vzorec
A3: 1 | B3: Default_rate | C3: =Default /Báze
A5: Výpočtová položka
A6: Pořadí řešení | B6: Položka | C6: Vzorec
A9: Poznámka: | B9: Pokud je buňka aktualizována více než jedním vzorcem,
B10: je hodnota určena vzorcem, který je v pořadí řešení poslední.
B12: Pořadí řešení několika vypočtených položek nebo polí lze změnit příkazem
B13: na kartě Možnosti ve skupině Nástroje klepněte na položku Vzorce a potom klepněte na příkaz Pořadí řešení.
A14: List s formulema
A15: List s formulema

Sheet Kreditní riziko - kont.tabulka
A1: Práce s kontingenční tabulkou pokračování
B8: Hodnoty
A9: Popisky řádků | B9: Součet z Default | C9: Součet z Báze | D9: Součet z Default_rate
A10: Dobrý | B10: 5351 | C10: 10751 | D10: 0.4977211422
A11: Horší | B11: 1044 | C11: 2063 | D11: 0.5060591372
A12: Ještě horší | B12: 1106 | C12: 2081 | D12: 0.5314752523
A13: Nejhorší | B13: 1012 | C13: 2019 | D13: 0.5012382368
A14: Nejlepší | B14: 2045 | C14: 4194 | D14: 0.4876013352
A15: Celkový součet | B15: 10558 | C15: 21108 | D15: 0.5001895016

Sheet Vyplnění formulářem - VBA
A1: Jméno | B1: Příjmení | C1: Plat | D1: Povolání
A2: Jakub | B2: Cerny | C2: Moc | D2: Ucitel
A3: Jakub | B3: Cerny | C3: Moc | D3: Ucitel
A4: Jakub | B4: Cerny | C4: Moc | D4: Ucitel
A5: Jakub | B5: Cerny | C5: Moc | D5: Ucitel
A6: Jakub | B6: Cerny | C6: Moc | D6: Ucitel
A7: Jakub | B7: Cerny | C7: Moc | D7: Ucitel

Sheet Současná hodnota důchodu - VBA
A1: Částka | B1: Doba v letech | C1: Nominální úroková sazba | D1: Efektivní úroková sazba | E1: Frekvence úročení a výplaty | F1: Před/Polhůtní | G1: Současná hodnota
A2: 1000 | B2: 5 | C2: 0.03 | D2: 0.03 | E2: roční | F2: Polhůtní | G2: =-_xludf.PV(0.03,5,1000,,0) -> 
A3: 1000 | B3: 5 | C3: 0.03 | D3: 0.03 | E3: roční | F3: Polhůtní | G3: =-PV(0.03,5,1000,,0) -> 4579.707187

Sheet List2
A1: Sbohem Svete! | B1: uyfuyvui | C1: 1 | E1: =fcePokusnaSoucet(C1,C2) -> 5
A2: Sbohem Svete! | C2: 2
C3: 3
C4: 4
C5: 5
C6: 6
C7: 7
C8: 8
C9: 9
C10: 10
C11: 11
C12: 12
C13: 13
C14: 14
C15: 15
